[Event "22nd Hogeschool Zeeland 2018"]
[Site "Vlissingen"]
[Date "2018.08.11"]
[Round "9"]
[White "Viani Antonio Dcunha"]
[Black "Pruijssers, Roeland"]
[Result "0-1"]
[ECO "B09"]
[WhiteElo "2414"]
[BlackElo "2506"]
[Annotator "ChessBase"]
[PlyCount "160"]
[EventDate "2018.08.04"]
[EventType "swiss"]
[EventCountry "NED"]
[SourceTitle "playchess.com"]
[Source "ChessBase"]
[SourceQuality "1"]
[TimeControl "40/5400+30:1800+30"]

1. e4 {[%emt 0:00:02]} g6 {[%emt 0:00:42]} 2. d4 {[%emt 0:00:23]} Bg7 {[%emt 0:00:08]} 3. Nc3 {[%emt 0:00:21]} d6 {[%emt 0:00:07]} 4. f4 {[%emt 0:00:44]} Nf6 {[%emt 0:00:10]} 5. Nf3 {[%emt 0:01:37]} O-O {[%emt 0:00:09]} 6. e5 {[%emt 0:00:14]} Nfd7 {[%emt 0:02:07]} 7. h4 {[%emt 0:00:19]} c5 {[%emt 0:05:47]} 8. h5 {[%emt 0:01:14]} cxd4 {[%emt 0:00:26]} 9. Qxd4 {[%emt 0:00:10]} dxe5 {[%emt 0:09:39]} 10. Qf2 {[%emt 0:00:51]} e6 {[%emt 0:03:01]} 11. Qg3 {[%emt 0:22:33]} Nc6 {[%emt 0:06:27]} 12. hxg6 {[%emt 0:06:45]} fxg6 {[%emt 0:00:15]} 13. Qh3 {[%emt 0:04:26]} h6 {[%emt 0:16:24]} 14. Qxe6+ {[%emt 0:10:57]} Kh8 {[%emt 0:00:07]} 15. Qxg6 {[%emt 0:06:53]} Rf6 {[%emt 0:04:09]} 16. Qd3 {[%emt 0:11:43]} exf4 {[%emt 0:06:10]} 17. Be2 {[%emt 0:01:20]} Qf8 {[%emt 0:05:00]} 18. Nd5 {[%emt 0:11:31]} Nde5 {[%emt 0:20:18]} 19. Nxe5 {[%emt 0:00:09]} Nxe5 {[%emt 0:00:06]} 20. Qe4 {[%emt 0:00:17]} Rf7 {[%emt 0:01:30]} 21. Bxf4 {[%emt 0:07:40]} Bf5 {[%emt 0:00:03]} 22. Qe3 {[%emt 0:02:13]} Re8 {[%emt 0:03:23]} 23. Bxh6 {[%emt 0:06:41]} Nd3+ {[%emt 0:00:19]} 24. Bxd3 {[%emt 0:00:08]} Bxh6 {[%emt 0:00:36]} 25. Rxh6+ {[%emt 0:00:33]} Kg7 {[%emt 0:00:02]} 26. O-O-O {[%emt 0:02:28]} Rxe3 {[%emt 0:00:21]} 27. Nxe3 {[%emt 0:00:13]} Bxd3 {[%emt 0:00:59]} 28. Re6 {[%emt 0:00:27]} Bh7 {[%emt 0:03:21]} 29. g4 {[%emt 0:00:05]} Qb4 {[%emt 0:02:43]} 30. Nf5+ {[%emt 0:01:16]} Bxf5 {[%emt 0:00:14]} 31. gxf5 {[%emt 0:00:02]} Qf4+ {[%emt 0:00:09]} 32. Kb1 {[%emt 0:00:02]} Qxf5 {[%emt 0:00:06]} 33. Ree1 {[%emt 0:00:32]} b5 {[%emt 0:04:56]} 34. a3 {[%emt 0:00:29]} a5 {[%emt 0:00:12]} 35. Rg1+ {[%emt 0:00:20]} Kf8 {[%emt 0:00:02]} 36. Rd8+ {[%emt 0:00:20]} Ke7 {[%emt 0:00:02]} 37. Rgd1 {[%emt 0:00:31]} Qe6 {[%emt 0:04:00]} 38. R8d5 {[%emt 0:01:05]} Rf2 {[%emt 0:01:37]} 39. Rxb5 {[%emt 0:01:23]} Qc6 {[%emt 0:00:02]} 40. Re1+ {[%emt 0:00:15]} Kd7 {[%emt 0:01:58]} 41. Rd1+ {[%emt 0:03:31]} Kc7 {[%emt 0:18:10]} 42. c4 {[%emt 0:00:31]} Qf3 {[%emt 0:02:24]} 43. Rc5+ {[%emt 0:00:59]} Kb6 {[%emt 0:01:29]} 44. Rb5+ {[%emt 0:02:43]} Kc6 {[%emt 0:00:01]} 45. Rbd5 {[%emt 0:08:48]} Rf1 {[%emt 0:01:02]} 46. Kc2 {[%emt 0:00:47]} Qe2+ {[%emt 0:07:21]} 47. R5d2 {[%emt 0:00:08]} Qxc4+ {[%emt 0:00:32]} 48. Kb1 {[%emt 0:00:04]} Kb5 {[%emt 0:00:47]} 49. Rxf1 {[%emt 0:04:42]} Qxf1+ {[%emt 0:00:02]} 50. Ka2 {[%emt 0:00:48]} Qc4+ {[%emt 0:00:07]} 51. b3 {[%emt 0:03:05]} Qc1 {[%emt 0:01:29]} 52. Rh2 {[%emt 0:01:09]} a4 {[%emt 0:01:47]} 53. bxa4+ {[%emt 0:01:15]} Kxa4 {[%emt 0:00:01]} 54. Rh4+ {[%emt 0:00:07]} Ka5 {[%emt 0:00:09]} 55. Rb4 {[%emt 0:00:16]} Qc2+ {[%emt 0:00:09]} 56. Ka1 {[%emt 0:02:46]} Qc3+ {[%emt 0:00:02]} 57. Ka2 {[%emt 0:00:10]} Qc1 {[%emt 0:00:03]} 58. Rb2 {[%emt 0:02:54]} Qc4+ {[%emt 0:00:05]} 59. Ka1 {[%emt 0:00:45]} Qd3 {[%emt 0:00:02]} 60. Ka2 {[%emt 0:00:35]} Qd5+ {[%emt 0:00:01]} 61. Kb1 {[%emt 0:01:26]} Ka4 {[%emt 0:00:11]} 62. Kc1 {[%emt 0:00:43]} Kxa3 {[%emt 0:00:08]} 63. Rd2 {[%emt 0:00:14]} Qe4 {[%emt 0:01:19]} 64. Rd3+ {[%emt 0:00:20]} Kb4 {[%emt 0:00:07]} 65. Kd2 {[%emt 0:00:15]} Kc4 {[%emt 0:00:09]} 66. Ra3 {[%emt 0:00:28]} Qg2+ {[%emt 0:00:06]} 67. Ke1 {[%emt 0:01:22]} Qe4+ {[%emt 0:00:36]} 68. Kd2 {[%emt 0:00:02]} Qd4+ {[%emt 0:00:11]} 69. Kc2 {[%emt 0:00:12]} Qf2+ {[%emt 0:00:02]} 70. Kd1 {[%emt 0:00:59]} Qf8 {[%emt 0:04:53]} 71. Re3 {[%emt 0:00:42]} Kd4 {[%emt 0:00:01]} 72. Rb3 {[%emt 0:00:22]} Qf1+ {[%emt 0:01:12]} 73. Kd2 {[%emt 0:00:04]} Qc4 {[%emt 0:00:49]} 74. Rg3 {[%emt 0:00:32]} Qa2+ {[%emt 0:00:06]} 75. Kd1 {[%emt 0:00:26]} Qe6 {[%emt 0:00:21]} 76. Ra3 {[%emt 0:00:28]} Qe7 {[%emt 0:01:20]} 77. Rg3 {[%emt 0:00:52]} Qe4 {[%emt 0:00:38]} 78. Rb3 {[%emt 0:01:12]} Kc4 {[%emt 0:00:01]} 79. Rg3 {[%emt 0:00:42]} Qf4 {[%emt 0:00:41]} 80. Ra3 {[%emt 0:00:26]} Qd6+ {[%emt 0:00:02]} 0-1

[Event "22nd Hogeschool Zeeland 2018"]
[Site "Vlissingen"]
[Date "2018.08.11"]
[Round "9"]
[White "Gonzales, Jayson"]
[Black "Shyaamnikhil, P."]
[Result "1/2-1/2"]
[ECO "A35"]
[WhiteElo "2383"]
[BlackElo "2389"]
[Annotator "NA"]
[PlyCount "210"]
[EventDate "2018.08.04"]
[EventType "swiss"]
[EventCountry "NED"]
[SourceTitle "playchess.com"]
[Source "ChessBase"]
[SourceQuality "1"]
[TimeControl "40/5400+30:1800+30"]

1. Nf3 {[%emt 0:00:00]} c5 {[%emt 0:03:07]} 2. c4 {[%emt 0:00:50]} g6 {[%emt 0:00:21]} 3. Nc3 {[%emt 0:02:31]} Bg7 {[%emt 0:00:14]} 4. d4 {[%emt 0:06:10]} cxd4 {[%emt 0:00:10]} 5. Nxd4 {[%emt 0:00:01]} Nc6 {[%emt 0:00:08]} 6. Nb3 {[%emt 1:23:28]} b6 {[%emt 0:05:08]} 7. e4 {[%emt 0:00:00]} Ba6 {[%emt 0:04:03]} 8. Bf4 {[%emt 0:00:00]} Nf6 {[%emt 0:01:55]} 9. Be2 {[%emt 0:00:00]} O-O {[%emt 0:00:27]} 10. Rc1 {[%emt 0:00:00]} d6 {[%emt 0:00:40]} 11. O-O {[%emt 0:00:00]} Rc8 {[%emt 0:02:17]} 12. Re1 {[%emt 0:00:00]} Nd7 {[%emt 0:01:56]} 13. Be3 {[%emt 0:00:00]} Nc5 {[%emt 0:04:06]} 14. f3 {[%emt 0:00:00]} Bb7 {[%emt 0:12:14]} 15. Qd2 {[%emt 0:00:00]} Ba8 {[%emt 0:11:43]} 16. Bf1 {[%emt 0:00:00]} a6 {[%emt 0:10:09]} 17. Red1 $14 {[%emt 0:00:00]} Qc7 {[%emt 0:06:51]} 18. Nd5 {[%emt 0:00:00]} Qa7 {[%emt 0:00:09]} 19. Na1 {[%emt 0:00:00]} e6 {[%emt 0:01:43]} 20. Nc3 {[%emt 0:00:00]} Rfd8 {[%emt 0:03:15]} 21. Nc2 {[%emt 0:00:00]} Qb8 {[%emt 0:02:07]} 22. Bg5 {[%emt 0:00:00]} f6 {[%emt 0:04:52]} 23. Bh4 {[%emt 0:00:00]} Ne5 {[%emt 0:03:27]} 24. Nd4 {[%emt 0:00:00]} Re8 {[%emt 0:01:10]} 25. b3 {[%emt 0:00:00]} Nf7 {[%emt 0:01:45]} 26. Qc2 {[%emt 0:00:00]} Nd7 {[%emt 0:00:47]} 27. Kh1 {[%emt 0:03:33]} Bh6 {[%emt 0:03:06]} 28. Rb1 {[%emt 0:00:10]} Qc7 {[%emt 0:00:13]} 29. Bg3 {[%emt 0:02:07]} Qa7 {[%emt 0:08:00]} 30. Qb2 {[%emt 0:00:54]} Bf8 {[%emt 0:02:38]} 31. Rbc1 {[%emt 0:00:30]} g5 {[%emt 0:04:02]} 32. Rc2 {[%emt 0:02:27]} Nde5 {[%emt 0:00:25]} 33. Bf2 {[%emt 0:01:17]} Qb8 {[%emt 0:00:41]} 34. Na4 {[%emt 0:01:01]} Nd7 {[%emt 0:00:30]} 35. Rcd2 {[%emt 0:00:26]} Bg7 {[%emt 0:00:59]} 36. Qb1 {[%emt 0:01:00]} Bf8 {[%emt 0:00:25]} 37. Qb2 {[%emt 0:02:05]} Bg7 {[%emt 0:00:08]} 38. Qb1 {[%emt 0:00:00]} Bf8 {[%emt 0:00:06]} 39. Bg1 {[%emt 0:00:00]} Kh8 {[%emt 0:00:25]} 40. Rc2 {[%emt 0:00:25]} Nfe5 {[%emt 0:00:53]} 41. Qc1 {[%emt 0:31:00]} Ng6 {[%emt 0:31:39]} 42. Qd2 {[%emt 0:00:00]} Bb7 {[%emt 0:00:00]} 43. Qf2 {[%emt 0:00:00]} Ba8 {[%emt 0:00:00]} 44. Qd2 {[%emt 0:00:00]} Bb7 {[%emt 0:00:00]} 45. Be3 {[%emt 0:00:00]} Ba8 {[%emt 0:00:00]} 46. Qf2 {[%emt 0:00:00]} Qb7 {[%emt 0:00:00]} 47. Bc1 {[%emt 0:00:00]} d5 {[%emt 0:00:00]} 48. cxd5 {[%emt 0:00:00]} exd5 {[%emt 0:00:00]} 49. exd5 {[%emt 0:00:00]} b5 {[%emt 0:00:00]} 50. Nc3 {[%emt 0:00:00]} Bc5 {[%emt 0:00:00]} 51. Bb2 {[%emt 0:00:00]} Bb6 {[%emt 0:00:00]} 52. Re2 {[%emt 0:00:00]} Nf4 {[%emt 0:00:58]} 53. Rxe8+ {[%emt 0:00:00]} Rxe8 {[%emt 0:00:05]} 54. Qc2 {[%emt 0:00:00]} Qc8 {[%emt 0:02:02]} 55. Qb1 {[%emt 0:00:00]} Re5 {[%emt 0:00:43]} 56. Nf5 {[%emt 0:00:00]} Qc5 {[%emt 0:01:15]} 57. Nd4 {[%emt 0:00:00]} Nxd5 {[%emt 0:00:41]} 58. Ne4 {[%emt 0:00:00]} Qf8 {[%emt 0:00:47]} 59. Nc2 {[%emt 0:01:39]} Re8 {[%emt 0:02:40]} 60. Nxg5 {[%emt 0:01:06]} Qg7 {[%emt 0:00:07]} 61. Ne4 {[%emt 0:01:30]} Ne5 {[%emt 0:00:04]} 62. Bd4 {[%emt 0:02:24]} Bc7 {[%emt 0:01:01]} 63. Qc1 {[%emt 0:01:49]} Qg6 {[%emt 0:01:09]} 64. Ne3 {[%emt 0:01:26]} Nxe3 {[%emt 0:00:49]} 65. Bxe3 {[%emt 0:00:13]} Bxe4 {[%emt 0:00:29]} 66. Qxc7 {[%emt 0:00:56]} Nxf3 {[%emt 0:00:08]} 67. Rd8 {[%emt 0:00:23]} Nh4 {[%emt 0:01:01]} 68. Rxe8+ {[%emt 0:00:38]} Qxe8 {[%emt 0:00:03]} 69. Qf4 {[%emt 0:00:23]} Nf5 {[%emt 0:00:10]} 70. Bf2 {[%emt 0:00:28]} Qe5 {[%emt 0:00:15]} 71. Qd2 {[%emt 0:00:24]} Qd5 {[%emt 0:00:41]} 72. Qc3 {[%emt 0:00:29]} Qc6 {[%emt 0:00:11]} 73. Qa5 {[%emt 0:01:24]} Kg7 {[%emt 0:00:40]} 74. Kg1 {[%emt 0:00:16]} Qd6 {[%emt 0:00:19]} 75. Qc3 {[%emt 0:00:55]} Qc6 {[%emt 0:00:13]} 76. Qh3 {[%emt 0:00:37]} Qc2 {[%emt 0:01:01]} 77. g4 {[%emt 0:00:35]} Ne7 {[%emt 0:00:56]} 78. Qe3 {[%emt 0:00:50]} Kf7 {[%emt 0:01:01]} 79. h3 {[%emt 0:00:33]} Qc6 {[%emt 0:00:30]} 80. Qd4 {[%emt 0:00:23]} Qd5 {[%emt 0:00:18]} 81. Qc3 {[%emt 0:00:26]} Qc6 {[%emt 0:00:19]} 82. Qe3 {[%emt 0:00:18]} Ng6 {[%emt 0:00:42]} 83. Bg3 {[%emt 0:00:14]} Ne7 {[%emt 0:00:08]} 84. Qf2 {[%emt 0:00:19]} Nd5 {[%emt 0:00:39]} 85. Qa7+ {[%emt 0:00:50]} Kg6 {[%emt 0:00:08]} 86. Qd4 {[%emt 0:00:44]} Qb6 {[%emt 0:00:12]} 87. Qxb6 {[%emt 0:00:08]} Nxb6 {[%emt 0:00:05]} 88. Bf2 {[%emt 0:00:10]} Nd5 {[%emt 0:00:27]} 89. a4 {[%emt 0:00:07]} Bc2 {[%emt 0:00:25]} 90. axb5 {[%emt 0:00:17]} axb5 {[%emt 0:00:04]} 91. Bxb5 {[%emt 0:00:07]} Bxb3 {[%emt 0:00:04]} 92. Bd3+ {[%emt 0:00:06]} Kg7 {[%emt 0:00:05]} 93. Bg3 {[%emt 0:00:16]} Nb4 {[%emt 0:00:15]} 94. Be2 {[%emt 0:00:08]} Nc6 {[%emt 0:00:19]} 95. Kf2 {[%emt 0:00:18]} Nd4 {[%emt 0:00:15]} 96. Bf1 {[%emt 0:00:27]} Bd5 {[%emt 0:00:18]} 97. Ke3 {[%emt 0:00:11]} Nc6 {[%emt 0:00:19]} 98. Be2 {[%emt 0:00:31]} h6 {[%emt 0:00:23]} 99. Be1 {[%emt 0:00:27]} Be6 {[%emt 0:00:39]} 100. Bc3 {[%emt 0:00:16]} Kf7 {[%emt 0:00:40]} 101. Kf4 {[%emt 0:01:49]} Ne7 {[%emt 0:00:08]} 102. Bd2 {[%emt 0:00:27]} Ng6+ {[%emt 0:01:06]} 103. Ke4 {[%emt 0:00:11]} Kg7 {[%emt 0:00:03]} 104. Bc3 {[%emt 0:00:18]} Kf7 {[%emt 0:00:08]} 105. Bd3 {[%emt 0:00:22]} Ne7 {[%emt 0:00:10]} 1/2-1/2

[Event "22nd Hogeschool Zeeland 2018"]
[Site "Vlissingen"]
[Date "2018.08.11"]
[Round "9"]
[White "Ravi, Teja Sanka"]
[Black "Stillger, Bernhard"]
[Result "1/2-1/2"]
[ECO "D05"]
[WhiteElo "2374"]
[BlackElo "2271"]
[Annotator "NA"]
[PlyCount "95"]
[EventDate "2018.08.04"]
[EventType "swiss"]
[EventCountry "NED"]
[SourceTitle "playchess.com"]
[Source "ChessBase"]
[SourceQuality "1"]
[TimeControl "40/5400+30:1800+30"]

1. d4 {[%emt 0:00:00]} Nf6 {[%emt 0:02:54]} 2. Nf3 {[%emt 0:00:00]} e6 {[%emt 0:00:03]} 3. e3 {[%emt 0:00:17]} c5 {[%emt 0:00:04]} 4. Bd3 {[%emt 0:00:23]} d5 {[%emt 0:00:06]} 5. O-O {[%emt 0:00:06]} c4 {[%emt 0:00:14]} 6. Be2 {[%emt 0:00:07] D05: Colle System with ...e6} b5 {[%emt 0:00:18]} 7. b3 {[%emt 0:00:43]} Bb7 {[%emt 0:04:04]} 8. a4 {[%emt 0:00:14]} (8. Nc3 b4 9. Na4 c3 10. Ne5 Bd6 11. a3 a5 12. Bb5+ Kf8 13. Nc5 Qb6 14. Nxb7 Qxb7 15. Qe2 g6 16. e4 Nxe4 17. Bh6+ Ke7 18. f3 Nd2 19. Rfe1 Kd8 20. Bf4 {1-0 (20) Kramnik,V (2808)-Giri,A (2771) Stavanger 2017 CBM 179 [Yermolinsky,A]}) 8... a6 {[%emt 0:00:11]} 9. c3 {[%emt 0:00:13]} Nbd7 {[%emt 0:06:46]} 10. Qc2 $146 {[%emt 0:03:07]} ({Predecessor:} 10. Ba3 Bxa3 11. Nxa3 Ne4 12. Qc2 Bc6 13. axb5 axb5 {½-½ (30) Gelashvili,T (2566)-Krush,I (2459) Las Vegas 2012}) 10... Bc6 {[%emt 0:06:27]} 11. Qd1 {[%emt 0:36:25]} Be7 {[%emt 0:06:49]} 12. Ba3 {[%emt 0:02:04]} O-O {[%emt 0:01:50]} 13. Qc1 {[%emt 0:03:23]} Ne4 {[%emt 0:06:20]} 14. Nbd2 {[%emt 0:05:58]} Nd6 {[%emt 0:12:31]} 15. Qb2 {[%emt 0:06:00]} Qc7 {[%emt 0:02:35]} 16. Bb4 {[%emt 0:03:57]} Rfb8 {[%emt 0:05:47]} 17. axb5 {[%emt 0:03:19]} axb5 {[%emt 0:00:23]} 18. Rxa8 {[%emt 0:01:28]} Rxa8 $11 {[%emt 0:00:19]} 19. Ra1 {[%emt 0:00:03]} f6 {[%emt 0:06:26]} 20. Rxa8+ {[%emt 0:03:09]} Bxa8 {[%emt 0:00:03]} 21. Qa3 {[%emt 0:00:12]} Bc6 {[%emt 0:01:24]} 22. Ne1 {[%emt 0:01:40]} Bf8 {[%emt 0:02:38]} 23. Nc2 {[%emt 0:00:46]} Kf7 {[%emt 0:07:38]} 24. h3 {[%emt 0:02:43]} Qb8 {[%emt 0:02:21]} 25. Bh5+ {[%emt 0:02:01]} g6 {[%emt 0:00:36]} 26. Bf3 {[%emt 0:00:05]} Qc7 {[%emt 0:03:06]} 27. Qa6 {[%emt 0:03:58]} Nb8 {[%emt 0:03:48]} 28. Qa3 {[%emt 0:00:18]} Nd7 {[%emt 0:00:05]} 29. g3 {[%emt 0:00:40]} Kg7 {[%emt 0:06:09]} 30. h4 {[%emt 0:01:14]} Kf7 {[%emt 0:00:20]} 31. Be2 {[%emt 0:03:05]} Qb8 {[%emt 0:01:20]} 32. Bf1 {[%emt 0:01:30]} Qc7 {[%emt 0:01:54]} 33. Bg2 {[%emt 0:00:09]} Kg7 {[%emt 0:01:50]} 34. Qa6 {[%emt 0:07:23]} Nb8 {[%emt 0:00:32]} 35. Qa2 {[%emt 0:00:08]} Nd7 {[%emt 0:00:36]} 36. Qa3 {[%emt 0:02:08]} Kf7 {[%emt 0:00:38]} 37. Bh3 {[%emt 0:00:31]} Qb8 {[%emt 0:02:19]} 38. Qa6 {[%emt 0:00:34]} Qa8 {[%emt 0:04:42]} 39. Qa3 {[%emt 0:03:31]} Qxa3 {[%emt 0:00:32]} 40. Nxa3 {[%emt 0:00:25]} f5 {[%emt 0:02:46]} 41. Bg2 {[%emt 0:30:51]} Ne4 {[%emt 0:30:30]} 42. Bxe4 {[%emt 0:00:00]} fxe4 {[%emt 0:00:00]} 43. Bxf8 {[%emt 0:00:00]} Kxf8 {[%emt 0:00:00]} 44. f3 {[%emt 0:00:00]} exf3 {[%emt 0:00:00]} 45. b4 {[%emt 0:00:00]} Kg8 {[%emt 0:02:36]} 46. Nxf3 {[%emt 0:08:12] Nf6Nb1 [%clk 0:00:00] Ne4Na3 [%clk 0:00:00]} Nf6 {[%emt 0:00:30]} 47. Nd2 {[%emt 0:00:30]} Nd7 {[%emt 0:00:30]} 48. Nf3 {[%emt 0:00:30] Nf6Nb1 [%clk 0:00:00] Ne4Nbd2Nxg3*} 1/2-1/2

[Event "22nd Hogeschool Zeeland 2018"]
[Site "Vlissingen"]
[Date "2018.08.11"]
[Round "9"]
[White "Van der Lende, Ilias"]
[Black "Hesse, Henrik"]
[Result "1-0"]
[ECO "C42"]
[WhiteElo "2347"]
[BlackElo "2137"]
[Annotator "NA"]
[PlyCount "93"]
[EventDate "2018.08.04"]
[EventType "swiss"]
[EventCountry "NED"]
[SourceTitle "playchess.com"]
[Source "ChessBase"]
[SourceQuality "1"]
[TimeControl "40/5400+30:1800+30"]

1. e4 {[%emt 0:00:00]} e5 {[%emt 0:01:04]} 2. Nf3 {[%emt 0:00:07]} Nf6 {[%emt 0:00:09]} 3. Nxe5 {[%emt 0:00:20]} d6 {[%emt 0:00:10]} 4. Nf3 {[%emt 0:00:05]} Nxe4 {[%emt 0:00:21]} 5. d4 {[%emt 0:00:05]} d5 {[%emt 0:00:28]} 6. Bd3 {[%emt 0:00:05]} Nc6 {[%emt 0:00:22]} 7. O-O {[%emt 0:02:35]} Be7 {[%emt 0:01:31]} 8. Re1 {[%emt 0:04:04]} Bf5 {[%emt 0:02:27]} 9. Nc3 {[%emt 0:04:30]} Nxc3 {[%emt 0:07:03] C42: Petroff Defence: 3 Nxe5 and unusual White 3rd moves} 10. bxc3 {[%emt 0:00:18]} Bxd3 {[%emt 0:14:18]} 11. Qxd3 {[%emt 0:00:48]} O-O {[%emt 0:00:21]} 12. Rb1 {[%emt 0:01:18]} (12. Re2 a6 13. Bf4 Qd7 14. Rae1 Rfe8 15. h4 h6 16. Qe3 b5 {½-½ (60) Nepomniachtchi,I (2757)-Giri,A (2782) Dortmund 2018}) 12... b6 {[%emt 0:07:07]} 13. c4 {[%emt 0:02:24]} dxc4 {[%emt 0:14:02]} 14. Qe4 {[%emt 0:01:26]} Bb4 {[%emt 0:11:36] [#]} 15. Qxc6 $146 {[%emt 0:04:57]} ({Predecessor:} 15. Ng5 f5 16. Qxc6 Bxe1 17. Qe6+ {1-0 (39) Sjugirov,S (2629)-Rojas Alarcon,J (2291) Chennai 2011}) 15... Bxe1 {[%emt 0:00:07]} 16. Nxe1 {[%emt 0:00:12]} Qxd4 {[%emt 0:15:01]} 17. Bb2 {[%emt 0:03:42]} Qd6 {[%emt 0:04:57]} 18. Qxc4 {[%emt 0:00:18]} Rfe8 {[%emt 0:00:08]} 19. Nf3 {[%emt 0:03:23]} c5 {[%emt 0:04:13]} 20. h4 {[%emt 0:01:41]} Qe6 {[%emt 0:01:14]} 21. Qc3 {[%emt 0:01:33]} f6 {[%emt 0:00:33]} 22. a4 {[%emt 0:00:23]} Rad8 {[%emt 0:01:27]} 23. a5 $11 {[%emt 0:02:50]} Qe2 {[%emt 0:02:53]} 24. axb6 {[%emt 0:03:02]} Rd1+ {[%emt 0:01:05]} 25. Rxd1 {[%emt 0:00:04]} Qxd1+ {[%emt 0:00:09]} 26. Kh2 {[%emt 0:00:06]} Qd6+ {[%emt 0:01:19]} 27. g3 {[%emt 0:00:12]} axb6 {[%emt 0:01:33]} 28. Bc1 {[%emt 0:09:09]} Qd5 {[%emt 0:02:11]} 29. Kg2 {[%emt 0:00:49]} Re5 {[%emt 0:03:01]} 30. Bf4 {[%emt 0:02:31]} Rh5 {[%emt 0:01:34]} 31. Qe1 {[%emt 0:06:15]} Kf7 {[%emt 0:00:41]} 32. g4 {[%emt 0:03:36]} Rxh4 {[%emt 0:00:41]} 33. Kg3 {[%emt 0:00:04]} g5 {[%emt 0:00:40]} 34. Nxh4 {[%emt 0:00:47]} gxf4+ {[%emt 0:01:31]} 35. Kxf4 {[%emt 0:00:34]} Qg5+ {[%emt 0:00:05]} 36. Kg3 {[%emt 0:00:05]} h5 {[%emt 0:00:37]} 37. f3 {[%emt 0:00:35]} hxg4 {[%emt 0:00:22]} 38. fxg4 {[%emt 0:00:06]} Qd5 {[%emt 0:01:07]} 39. Nf5 {[%emt 0:00:12]} Qd7 {[%emt 0:00:14]} 40. Qe3 {[%emt 0:00:38]} Qc7+ {[%emt 0:00:48]} 41. Qf4 {[%emt 0:30:07]} Qa7 {[%emt 0:04:52]} 42. Qc4+ {[%emt 0:00:00]} Kf8 {[%emt 0:00:59]} 43. Qe6 {[%emt 0:00:00]} Qc7+ {[%emt 0:01:00]} 44. Qd6+ {[%emt 0:00:00]} Qxd6+ {[%emt 0:00:04]} 45. Nxd6 {[%emt 0:00:00]} Kg7 {[%emt 0:00:29]} 46. Kf4 {[%emt 0:00:00]} Kg6 {[%emt 0:00:07]} 47. c4 {[%emt 0:00:00]} 1-0

[Event "22nd Hogeschool Zeeland 2018"]
[Site "Vlissingen"]
[Date "2018.08.11"]
[Round "9"]
[White "Mehar, Chinna Reddy CH"]
[Black "Muetsch, Annmarie"]
[Result "1/2-1/2"]
[ECO "E43"]
[WhiteElo "2345"]
[BlackElo "2239"]
[Annotator "NA"]
[PlyCount "66"]
[EventDate "2018.08.04"]
[EventType "swiss"]
[EventCountry "NED"]
[SourceTitle "playchess.com"]
[Source "ChessBase"]
[SourceQuality "1"]
[TimeControl "40/5400+30:1800+30"]

1. d4 {[%emt 0:02:11]} Nf6 {[%emt 0:00:00]} 2. Nf3 {[%emt 0:00:32]} e6 {[%emt 0:00:00]} 3. e3 {[%emt 0:00:38]} b6 {[%emt 0:00:54]} 4. Bd3 {[%emt 0:01:05]} Bb7 {[%emt 0:00:23]} 5. c4 {[%emt 0:00:24]} Bb4+ {[%emt 0:01:48]} 6. Nc3 {[%emt 0:03:07]} Bxc3+ {[%emt 0:06:01]} 7. bxc3 {[%emt 0:00:08]} c5 {[%emt 0:00:07]} 8. O-O {[%emt 0:01:13]} O-O {[%emt 0:00:33]} 9. a4 {[%emt 0:02:15] E43: Nimzo-Indian: Rubinstein: 4...b6} (9. Nd2 Nc6 10. Re1 d6 11. f3 Rc8 12. Bb2 Ba6 13. Qe2 Qd7 14. e4 Na5 15. Rac1 e5 16. Nf1 Nh5 17. g3 {½-½ (53) Agdestein,S (2581)-Vitiugov,N (2734) Helsingor 2018}) 9... d6 {[%emt 0:08:28]} 10. a5 {[%emt 0:01:28]} Nc6 $146 {[%emt 0:03:57]} ({Predecessor:} 10... Nbd7 11. Nd2 Re8 12. f3 Qc7 13. Rf2 Nf8 14. Nf1 e5 15. dxe5 dxe5 16. e4 Rad8 {½-½ (16) Hellsten,J (2477)-Romanishin,O (2559) Korinthos 2002}) 11. a6 {[%emt 0:05:06]} Bc8 {[%emt 0:00:10]} 12. e4 {[%emt 0:00:17]} e5 {[%emt 0:01:06]} 13. d5 {[%emt 0:00:35]} Na5 {[%emt 0:19:10]} 14. Bg5 {[%emt 0:00:44]} h6 {[%emt 0:02:30]} 15. Bh4 {[%emt 0:00:40]} Bxa6 {[%emt 0:01:54]} 16. Nd2 {[%emt 0:00:06]} g5 {[%emt 0:01:37]} 17. Bg3 {[%emt 0:00:06]} Bc8 {[%emt 0:02:00]} 18. h3 {[%emt 0:01:24]} Kh8 {[%emt 0:16:15]} 19. Re1 {[%emt 0:01:28]} Nh7 {[%emt 0:01:07]} 20. Nf1 {[%emt 0:01:12]} f5 {[%emt 0:03:42]} 21. exf5 {[%emt 0:00:12]} Bxf5 {[%emt 0:00:05]} 22. Bxf5 {[%emt 0:00:15]} Rxf5 {[%emt 0:00:04]} 23. Ne3 {[%emt 0:00:04]} Rf7 {[%emt 0:01:32]} 24. Qh5 {[%emt 0:01:56]} Qf8 {[%emt 0:03:18]} 25. Ra4 {[%emt 0:04:16]} Nf6 {[%emt 0:00:53]} 26. Qg6 {[%emt 0:00:07] [#]} Nd7 {[%emt 0:09:32]} ({Better is} 26... Ng8 $1 $17) 27. h4 {[%emt 0:03:23]} (27. Ng4 $15) 27... Rf6 {[%emt 0:01:46]} 28. Qc2 $17 {[%emt 0:01:04]} Kg7 {[%emt 0:03:18]} 29. Ng4 {[%emt 0:00:23]} Rf5 {[%emt 0:00:59]} 30. h5 {[%emt 0:00:50]} Qf7 {[%emt 0:02:20]} 31. Ne3 {[%emt 0:00:11]} Rf6 {[%emt 0:00:16]} 32. Ng4 {[%emt 0:00:06]} Rf5 {[%emt 0:00:46]} 33. Ne3 {[%emt 0:00:06]} Rf6 {[%emt 0:00:04]} 1/2-1/2

[Event "22nd Hogeschool Zeeland 2018"]
[Site "Vlissingen"]
[Date "2018.08.11"]
[Round "9"]
[White "De Jong, Migchiel"]
[Black "Van den Berg, Bram"]
[Result "1-0"]
[ECO "B01"]
[WhiteElo "2339"]
[BlackElo "2221"]
[Annotator "RC"]
[PlyCount "41"]
[EventDate "2018.08.04"]
[EventType "swiss"]
[EventCountry "NED"]
[SourceTitle "playchess.com"]
[Source "ChessBase"]
[SourceQuality "1"]
[TimeControl "40/5400+30:1800+30"]

1. e4 {[%emt 0:00:34]} d5 {[%emt 0:01:04]} 2. exd5 {[%emt 0:00:12]} Nf6 {[%emt 0:00:03]} 3. d4 {[%emt 0:00:31]} Bg4 {[%emt 0:00:04]} 4. Be2 {[%emt 0:00:08]} Bxe2 {[%emt 0:00:04]} 5. Qxe2 {[%emt 0:00:09]} Qxd5 {[%emt 0:00:03]} 6. Nf3 {[%emt 0:00:13]} e6 {[%emt 0:05:08]} 7. O-O {[%emt 0:00:43]} Nc6 {[%emt 0:08:08]} 8. c3 {[%emt 0:02:54]} Bd6 {[%emt 0:07:37]} 9. Re1 {[%emt 0:00:42]} Qh5 {[%emt 0:00:21]} 10. Nbd2 {[%emt 0:12:09]} g5 {[%emt 0:08:04]} 11. Qb5 {[%emt 0:09:21]} O-O-O {[%emt 0:11:36]} 12. Qxg5 {[%emt 0:00:46]} Bxh2+ {[%emt 0:05:13]} 13. Kf1 {[%emt 0:00:34]} Bd6 {[%emt 0:00:04]} 14. Qxf6 {[%emt 0:03:07]} Qh1+ {[%emt 0:00:52]} 15. Ke2 {[%emt 0:06:23]} Qxg2 {[%emt 0:00:17]} 16. Ne4 {[%emt 0:06:29]} Be7 {[%emt 0:05:30]} 17. Qxf7 {[%emt 0:06:21]} Rhf8 {[%emt 0:01:54]} 18. Rg1 {[%emt 0:00:32]} Qh3 {[%emt 0:00:28]} 19. Rg3 {[%emt 0:00:27]} Qh1 {[%emt 0:00:08]} 20. Qxe6+ {[%emt 0:00:11]} Kb8 {[%emt 0:00:04]} 21. Qh3 {[%emt 0:00:30]} 1-0